bitfinex-derivatives/quotes_BTCF0:USTF0_20210111
["timestamp","ask_amount","ask_price","bid_price","bid_amount"]
[1610331054552,0.13632608,36356.0,36344.0,0.13632608]
[1610331054954,0.13632608,36356.0,36345.0,0.0002]
[1610331055356,0.13632608,36356.0,36345.0,0.11048]
[1610331055955,0.13632608,36356.0,36346.0,0.0002]
[1610331056558,0.13632608,36347.0,36346.0,0.0002]
[1610331056758,0.13632608,36347.0,36345.0,0.11028]
[1610331057259,0.13632608,36347.0,36346.0,0.0002]
[1610331057660,0.11279,36365.0,36346.0,0.0002]
[1610331057859,0.10502,36373.0,36346.0,0.0002]
[1610331058060,0.2853,36385.0,36346.0,0.0002]
[1610331058661,0.13632608,36360.0,36349.0,0.13632608]
[1610331058862,0.13632608,36360.0,36350.0,0.0002]
[1610331060562,0.11452,36377.0,36350.0,0.0002]
[1610331060563,0.11452,36377.0,36355.0,0.13632608]
[1610331060966,0.11452,36377.0,36356.0,0.0002]
[1610331061364,0.11452,36377.0,36355.0,0.0002]
[1610331062664,0.13632608,36356.0,36355.0,0.0002]
[1610331063064,0.08038,36368.0,36355.0,0.0002]
[1610331063464,0.08038,36368.0,36355.0,0.10133]
[1610331063865,0.08038,36368.0,36356.0,0.0002]
[1610331064066,0.2853,36385.0,36356.0,0.0002]
[1610331064667,0.13632608,36370.0,36369.0,0.13632608]
[1610331065068,0.13632608,36370.0,36369.0,0.0002]
[1610331065266,0.13632608,36370.0,36356.0,0.0002]
[1610331066568,0.13632608,36365.0,36354.0,0.13632608]
[1610331067168,0.13632608,36365.0,36355.0,0.0002]
[1610331067368,0.09146,36376.0,36355.0,0.0002]
[1610331067769,0.09146,36376.0,36317.0,1.5600657]
[1610331067968,0.09146,36376.0,36355.0,0.09289]
[1610331068169,0.09146,36376.0,36356.0,0.0002]
[1610331068569,0.13632608,36366.0,36356.0,0.0002]
[1610331069170,0.24818608,36366.0,36356.0,0.0002]
[1610331069569,0.24818608,36366.0,36344.0,0.0002]
[1610331070372,0.24818608,36366.0,36293.0,0.3179]
[1610331070373,0.24818608,36366.0,36318.0,0.0002]
[1610331070570,0.11186,36366.0,36327.0,0.13632608]
[1610331070771,0.11186,36366.0,36327.0,0.23009608]
[1610331070970,0.11186,36366.0,36327.0,0.09377]
[1610331071170,0.11186,36366.0,36328.0,0.0002]
[1610331072572,0.13632608,36329.0,36328.0,0.0002]
[1610331073172,0.13632608,36329.0,36320.0,0.0002]
[1610331074573,0.13632608,36321.0,36320.0,0.0002]
[1610331074772,0.13632608,36321.0,36264.0,0.1556]
[1610331074973,0.13632608,36321.0,36317.0,0.0002]
[1610331075172,0.13632608,36321.0,36298.0,0.1018]
[1610331075772,0.13632608,36321.0,36232.0,2.43750691]
[1610331076172,0.13632608,36321.0,36231.0,0.1556]
[1610331076373,0.13632608,36321.0,36232.0,2.43596022]
[1610331076574,0.13632608,36317.0,36304.0,0.13632608]
[1610331076772,0.13632608,36317.0,36235.0,2.43574067]
[1610331076972,0.13632608,36317.0,36235.0,3.93574067]
[1610331077273,0.13632608,36317.0,36237.0,2.4359115]
[1610331077672,0.13632608,36317.0,36235.0,1.5]
[1610331077974,0.13632608,36317.0,36231.0,2.75356234]
[1610331077975,0.13632608,36317.0,36236.0,1.5]
[1610331078373,0.13632608,36317.0,36232.0,2.43583941]
[1610331078574,0.13632608,36317.0,36247.0,0.13632608]
[1610331078773,3.69012608,36317.0,36226.0,2.43588828]
[1610331079172,3.69012608,36317.0,36223.0,2.59828083]
[1610331079173,0.2889,36316.0,36217.0,2.43555391]
[1610331079473,0.2889,36316.0,36264.0,0.0002]
[1610331080077,0.2889,36316.0,36258.0,0.11408]
[1610331080478,5.19012608,36317.0,36188.0,2.43752249]
[1610331080677,0.13632608,36264.0,36239.0,0.10547]
[1610331080878,0.23726608,36264.0,36239.0,0.10547]
[1610331081078,0.23726608,36264.0,36169.0,2.4353435]
[1610331081479,0.23726608,36264.0,36163.0,2.43091692]
[1610331081880,0.23726608,36264.0,36156.0,2.75503917]
[1610331081881,0.23726608,36264.0,36156.0,2.43151946]
[1610331082280,0.23726608,36264.0,36149.0,2.43201197]
[1610331082479,0.23726608,36264.0,36146.0,2.4273595]
[1610331082681,0.2811,36263.0,36183.0,0.13632608]
[1610331083084,0.2885,36262.0,36183.0,0.13632608]
[1610331083883,0.2885,36262.0,36108.0,2.90769421]
[1610331083884,0.2885,36262.0,36125.0,2.42287256]
[1610331084083,0.2885,36262.0,36127.0,2.42276261]
[1610331084684,0.13632608,36212.0,36199.0,0.13632608]
[1610331085484,0.13632608,36212.0,36136.0,2.41706839]
[1610331085689,0.13632608,36212.0,36138.0,1.77490979]
[1610331086084,0.13632608,36212.0,36139.0,0.0002]
[1610331086285,0.13632608,36212.0,36139.0,0.08358]
[1610331086486,0.13632608,36212.0,36139.0,0.08338]
[1610331086686,0.10642,36243.0,36203.0,0.13632608]
[1610331086885,0.2988,36242.0,36203.0,0.22288608]
[1610331087485,0.2988,36242.0,36204.0,0.0838]
[1610331088688,0.13632608,36238.0,36228.0,0.13632608]
[1610331088889,0.09542608,36238.0,36228.0,0.13632608]
[1610331089089,0.2988,36242.0,36228.0,0.13632608]
[1610331089289,0.2988,36242.0,36228.0,0.20710608]
[1610331092792,0.13632608,36231.0,36228.0,0.20710608]
[1610331093595,0.2466,36242.0,36228.0,0.20710608]
[1610331093796,0.2428,36242.0,36228.0,0.20710608]
[1610331093997,0.2018,36242.0,36228.0,0.20710608]
[1610331094799,0.13632608,36229.0,36228.0,0.20710608]
[1610331095501,0.2018,36242.0,36228.0,0.20710608]
[1610331096603,0.2018,36242.0,36241.0,0.13632608]
[1610331096802,0.2018,36242.0,36241.0,0.21700608]
[1610331097202,0.2018,36242.0,36241.0,0.08068]
[1610331098004,0.68219785,36363.0,36241.0,0.08068]
[1610331098405,0.68352102,36370.0,36241.0,0.08068]
[1610331098806,1.07403472,36379.0,36241.0,0.08068]
[1610331098807,0.13632608,36300.0,36261.0,0.13632608]
[1610331099005,0.13632608,36300.0,36261.0,0.24927608]
[1610331099206,0.68581497,36382.0,36261.0,0.24927608]
[1610331099607,0.68642934,36385.0,36261.0,0.24927608]
[1610331100006,0.00033681,36384.0,36261.0,0.24927608]
[1610331100207,0.10537681,36384.0,36261.0,0.24927608]
[1610331100407,0.68419373,36383.0,36261.0,0.24927608]
[1610331100606,0.00033683,36382.0,36261.0,0.24927608]
[1610331100806,0.13632608,36269.0,36261.0,0.24927608]
[1610331101007,0.13632608,36269.0,36261.0,0.11295]
[1610331101407,0.09815,36288.0,36261.0,0.11295]
[1610331102409,0.07143,36304.0,36261.0,0.11295]
[1610331102810,0.13632608,36280.0,36274.0,0.13632608]
[1610331103211,0.13632608,36280.0,36261.0,0.11295]
[1610331103812,0.13632608,36280.0,36179.0,2.39090222]
[1610331104011,0.02047608,36287.0,36180.0,0.1556]
[1610331104211,0.02047608,36287.0,36181.0,1.5]
[1610331104411,0.02047608,36287.0,36204.0,0.0002]
[1610331104612,0.02047608,36287.0,36182.0,0.0002]
[1610331104812,0.13632608,36273.0,36261.0,0.13632608]
[1610331105012,0.02047608,36287.0,36261.0,0.13632608]
[1610331105211,0.66159614,36370.0,36262.0,0.0002]
[1610331105413,0.00033685,36369.0,36262.0,0.0002]
[1610331105612,0.09133685,36369.0,36262.0,0.0002]
[1610331106012,0.091,36369.0,36262.0,0.0002]
[1610331106213,0.0003368,36368.0,36262.0,0.0002]
[1610331106813,0.13632608,36298.0,36262.0,0.0002]
[1610331107015,0.13632608,36298.0,36261.0,0.10084]
[1610331107414,0.13632608,36298.0,36262.0,0.0002]
[1610331107817,0.13632608,36298.0,36261.0,0.10084]
[1610331108016,0.13632608,36298.0,36262.0,0.0002]
[1610331108818,0.13632608,36284.0,36266.0,0.13632608]
[1610331109119,0.13632608,36284.0,36267.0,0.0002]
[1610331109318,0.08259,36302.0,36267.0,0.0002]
[1610331110719,0.13632608,36291.0,36290.0,0.13632608]
[1610331111121,0.13632608,36291.0,36267.0,0.0002]
[1610331111122,0.13632608,36291.0,36261.0,0.10084]
[1610331111321,0.13632608,36291.0,36204.0,0.09579]
[1610331111520,0.13632608,36291.0,36200.0,1.5]
[1610331111521,0.13632608,36291.0,36262.0,0.0002]
[1610331111724,0.13632608,36291.0,36262.0,0.10718]
[1610331111920,0.13632608,36291.0,36262.0,0.10698]
[1610331112121,0.13632608,36291.0,36263.0,0.0002]
[1610331112722,0.08733,36303.0,36285.0,0.13632608]
[1610331112922,0.08733,36303.0,36263.0,0.0002]
[1610331113121,0.08733,36303.0,36262.0,0.10698]
[1610331113522,0.08733,36303.0,36263.0,0.0002]
[1610331113922,0.08733,36303.0,36250.0,0.09467]
[1610331114323,0.08733,36303.0,36251.0,0.0002]
[1610331114722,0.13632608,36255.0,36251.0,0.0002]
[1610331115523,0.13632608,36255.0,36244.0,0.0002]
[1610331116725,0.07299,36257.0,36244.0,0.0002]
[1610331117326,0.07299,36257.0,36244.0,0.10779]
[1610331117727,0.07299,36257.0,36245.0,0.0002]
[1610331117927,0.08733,36303.0,36245.0,0.0002]
[1610331118131,0.29,36310.0,36245.0,0.0002]
[1610331118328,0.219,36310.0,36245.0,0.0002]
[1610331118528,0.067,36310.0,36245.0,0.0002]
[1610331118727,0.13632608,36272.0,36270.0,0.13632608]
[1610331118928,0.07078,36286.0,36270.0,0.13632608]
[1610331119129,0.07078,36286.0,36270.0,0.20919608]
[1610331119329,0.07078,36286.0,36271.0,0.0002]
[1610331120733,0.13632608,36272.0,36271.0,0.0002]
[1610331121235,0.13632608,36272.0,36261.0,0.0002]
[1610331121736,0.13632608,36272.0,36195.0,1.20886195]
[1610331121935,0.13632608,36272.0,36196.0,1.20886195]
[1610331122139,0.13632608,36272.0,36196.0,1.32332195]
[1610331122335,0.13632608,36272.0,36197.0,0.0002]
[1610331122735,0.09109,36277.0,36239.0,0.13632608]
[1610331122936,0.09109,36277.0,36239.0,0.23686608]
[1610331123337,0.09109,36277.0,36240.0,0.0002]
[1610331124842,0.13632608,36241.0,36240.0,0.0002]
[1610331125243,0.13632608,36241.0,36239.0,0.09074]
[1610331125842,0.10765,36268.0,36239.0,0.09074]
[1610331126845,0.13632608,36240.0,36239.0,0.09074]
[1610331127442,0.13632608,36240.0,36239.0,0.09094]
[1610331127642,0.10765,36268.0,36239.0,0.09094]
[1610331128446,0.10765,36268.0,36240.0,0.0002]
[1610331128847,0.13632608,36252.0,36245.0,0.13632608]
[1610331129048,0.13632608,36252.0,36240.0,0.0002]
[1610331129449,0.13632608,36252.0,36246.0,0.0002]
[1610331129852,0.13632608,36252.0,36240.0,0.0002]
[1610331130750,0.13632608,36246.0,36240.0,0.0002]
[1610331131151,0.10858,36260.0,36240.0,0.0002]
[1610331131851,0.10765,36268.0,36240.0,0.0002]
[1610331132051,0.09109,36277.0,36240.0,0.0002]
[1610331132251,0.07078,36286.0,36240.0,0.0002]
[1610331132455,0.68042042,36316.0,36240.0,0.0002]
[1610331132653,0.8527037,36320.0,36240.0,0.0002]
[1610331132852,0.8527037,36320.0,36245.0,0.13632608]
[1610331133053,1.46169077,36335.0,36245.0,0.13632608]
[1610331133054,0.85212526,36318.0,36245.0,0.13632608]
[1610331133254,0.85212526,36318.0,36246.0,0.0002]
[1610331133455,0.85396951,36316.0,36246.0,0.0002]
[1610331133854,0.85112359,36310.0,36240.0,0.0002]
[1610331134054,0.2893,36297.0,36240.0,0.0002]
[1610331134853,0.13632608,36241.0,36240.0,0.0002]
[1610331135255,0.13632608,36241.0,36227.0,0.0002]
[1610331136355,0.21059608,36241.0,36207.0,0.0002]
[1610331136756,0.13632608,36208.0,36207.0,0.0002]
[1610331139456,0.13632608,36208.0,36206.0,3.2209]
[1610331139659,0.13632608,36208.0,36206.0,2.53523587]
[1610331139859,0.13632608,36208.0,36127.0,2.82296856]
[1610331139860,0.13632608,36208.0,36134.0,2.49085461]
[1610331140061,0.13632608,36208.0,36132.0,2.49089196]
[1610331140257,0.13632608,36208.0,36144.0,0.0002]
[1610331140457,0.13632608,36208.0,36144.0,0.07141]
[1610331140857,0.13632608,36155.0,36149.0,0.13632608]
[1610331141258,0.13632608,36155.0,36150.0,0.0002]
[1610331142861,0.13632608,36155.0,36153.0,0.13632608]
[1610331143261,0.13632608,36155.0,36153.0,0.24362608]
[1610331143461,0.13632608,36155.0,36154.0,0.0002]
[1610331144163,0.08034,36193.0,36154.0,0.0002]
[1610331144964,0.13632608,36173.0,36172.0,0.13632608]
[1610331145170,0.13632608,36173.0,36154.0,0.0002]
[1610331145363,0.13632608,36173.0,36172.0,0.0002]
[1610331145563,0.13632608,36173.0,36169.0,0.09764]
[1610331145964,0.13632608,36173.0,36170.0,0.0002]
[1610331148466,4.5161,36190.0,36170.0,0.0002]
[1610331148665,0.56706608,36210.0,36170.0,0.0002]
[1610331148867,0.46639216,36210.0,36188.0,0.13632608]
[1610331149066,0.16989216,36210.0,36188.0,0.13632608]
[1610331149265,0.11558,36211.0,36189.0,0.0002]
[1610331149467,0.2952,36263.0,36189.0,0.0002]
[1610331149667,0.2952,36263.0,36189.0,0.07714]
[1610331150271,0.2952,36263.0,36190.0,0.0002]
[1610331150869,0.2952,36263.0,36234.0,0.13632608]
[1610331151270,1.5,36292.0,36225.0,0.10958]
[1610331151470,0.271,36291.0,36225.0,0.10958]
[1610331151670,1.5,36290.0,36225.0,0.10958]
[1610331152272,1.5,36290.0,36211.0,0.07647]
[1610331152873,1.5,36290.0,36212.0,0.0002]
[1610331153271,1.5,36290.0,36209.0,0.09528]
[1610331153671,1.5,36290.0,36210.0,0.0002]
[1610331154471,1.5,36290.0,36199.0,3.1392]
[1610331154472,1.05633906,36287.0,36201.0,0.0002]
[1610331154671,1.5,36286.0,36200.0,0.0002]
[1610331154871,0.13632608,36212.0,36203.0,0.13632608]
[1610331155271,0.13632608,36212.0,36204.0,0.0002]
[1610331156471,0.13632608,36212.0,36200.0,0.0002]
[1610331156873,0.13632608,36201.0,36200.0,0.0002]
[1610331157072,0.22644608,36201.0,36200.0,0.0002]
[1610331157671,0.22644608,36201.0,36199.0,3.00971878]
[1610331157872,0.22644608,36201.0,36125.0,2.46465063]
[1610331158272,0.22644608,36201.0,36119.0,2.46516079]
[1610331158473,0.22644608,36201.0,36126.0,0.0002]
[1610331158674,0.22644608,36201.0,36126.0,0.07754]
[1610331158873,0.22644608,36201.0,36173.0,0.13632608]
[1610331158874,0.13632608,36177.0,36173.0,0.13632608]
[1610331159473,0.13632608,36177.0,36174.0,0.0002]
[1610331161176,0.07414,36193.0,36174.0,0.0002]
[1610331161776,0.09012,36201.0,36174.0,0.0002]
[1610331162176,0.2986,36216.0,36174.0,0.0002]
[1610331162377,0.09268,36217.0,36174.0,0.0002]
[1610331162576,0.2866,36216.0,36164.0,0.0002]
[1610331162778,4.3256,36206.0,36164.0,0.0002]
[1610331162976,0.13632608,36165.0,36164.0,0.0002]
[1610331163179,0.23544608,36165.0,36140.0,0.13632608]
[1610331163377,0.23544608,36165.0,36134.0,0.0002]
[1610331163776,0.23544608,36165.0,36127.0,0.0002]
[1610331164979,0.13632608,36128.0,36127.0,0.0002]
[1610331165177,0.23343608,36128.0,36127.0,0.0002]
[1610331165378,0.23343608,36128.0,36084.0,0.0002]
[1610331165577,0.23343608,36128.0,36110.0,0.0002]
[1610331165978,0.23343608,36128.0,36085.0,0.1146]
[1610331166179,0.23343608,36128.0,36086.0,0.0002]
[1610331166880,0.13632608,36108.0,36100.0,0.13632608]
[1610331167079,0.22957608,36108.0,36100.0,0.13632608]
[1610331167481,0.22957608,36108.0,36101.0,0.0002]
[1610331168981,0.13632608,36102.0,36101.0,0.0002]
[1610331169183,0.13632608,36102.0,36083.0,0.04757955]
[1610331169184,0.13632608,36102.0,36084.0,0.0002]
[1610331170183,0.09325,36108.0,36084.0,0.0002]
[1610331170885,0.13632608,36098.0,36089.0,0.13632608]
[1610331171284,0.10615,36117.0,36089.0,0.13632608]
[1610331171486,0.10615,36117.0,36090.0,0.0002]
[1610331173084,0.13632608,36108.0,36101.0,0.13632608]
[1610331173684,0.13632608,36108.0,36089.0,0.08354]
[1610331173884,0.25101608,36108.0,36089.0,0.08354]
[1610331174286,0.25101608,36108.0,36083.0,0.04757955]
[1610331174886,0.11469,36108.0,36083.0,0.04757955]
[1610331175087,0.2984,36127.0,36083.0,0.04757955]
[1610331175088,0.13632608,36114.0,36104.0,0.13632608]
[1610331175287,0.13632608,36114.0,36089.0,0.11723]
[1610331175487,0.25335608,36114.0,36089.0,0.11723]
[1610331176388,0.25335608,36114.0,36083.0,0.04757955]
[1610331176988,0.13632608,36084.0,36083.0,0.04757955]
[1610331177187,0.10096,36096.0,36083.0,0.04757955]
[1610331178188,0.11703,36114.0,36083.0,0.04757955]
[1610331178388,0.2984,36127.0,36083.0,0.04757955]
[1610331178988,0.13632608,36120.0,36101.0,0.13632608]
[1610331179189,0.22714608,36120.0,36101.0,0.13632608]
[1610331179588,0.22714608,36120.0,36083.0,0.04757955]
[1610331180989,0.09082,36120.0,36101.0,0.13632608]
[1610331182191,0.09082,36120.0,36102.0,0.0822]
[1610331182392,0.04182,36120.0,36102.0,0.0822]
[1610331182593,0.02162,36120.0,36102.0,0.0822]
[1610331182994,0.02162,36120.0,36106.0,0.13632608]
[1610331183193,0.04102,36127.0,36107.0,0.0838]
[1610331183394,0.2825,36164.0,36107.0,0.0838]
[1610331183794,0.0837,36191.0,36107.0,0.0838]
[1610331183795,0.05752,36165.0,36107.0,0.0838]
[1610331183995,0.0837,36191.0,36107.0,0.0838]
[1610331184393,0.111,36203.0,36107.0,0.0838]
[1610331184594,1.0,36241.0,36108.0,0.0002]
[1610331184795,1.00436124,36249.0,36108.0,0.0002]
[1610331184994,1.00436124,36249.0,36165.0,0.13632608]
[1610331185196,0.0817,36250.0,36166.0,0.083]
[1610331186197,0.0003379,36249.0,36166.0,0.083]
[1610331186396,0.1168079,36249.0,36166.0,0.083]
[1610331186799,0.00033792,36248.0,36166.0,0.083]
[1610331187000,0.13632608,36190.0,36184.0,0.13632608]
[1610331187198,0.09138,36190.0,36184.0,0.13632608]
[1610331187398,0.00620792,36249.0,36184.0,0.13632608]
[1610331187598,1.0,36257.0,36184.0,0.13632608]
[1610331187799,0.6683,36257.0,36184.0,0.13632608]
[1610331187998,1.01627091,36264.0,36184.0,0.13632608]
[1610331188201,0.0833,36275.0,36185.0,0.0835]
[1610331188399,3.614,36270.0,36185.0,0.0835]
[1610331188600,3.71713,36270.0,36185.0,0.0835]
[1610331188899,0.00033771,36269.0,36185.0,0.0835]
[1610331189101,0.13632608,36199.0,36196.0,0.13632608]
[1610331189499,0.09116,36211.0,36196.0,0.13632608]
[1610331189699,3.71713,36270.0,36196.0,0.13632608]
[1610331190904,3.71713,36270.0,36197.0,0.0002]
[1610331191104,0.13632608,36231.0,36222.0,0.13632608]
[1610331191303,0.13632608,36231.0,36222.0,0.1346373]
[1610331191304,0.24017608,36231.0,36222.0,0.1346373]
[1610331191504,0.10385,36231.0,36222.0,0.1346373]
[1610331192306,0.09703,36241.0,36222.0,0.1346373]
[1610331193103,0.09703,36241.0,36240.0,0.13632608]
[1610331193304,0.13632608,36255.0,36240.0,0.13632608]
[1610331193704,3.71713,36270.0,36240.0,0.13632608]
[1610331195106,3.71713,36270.0,36269.0,0.13632608]
[1610331195707,3.614,36270.0,36269.0,0.13632608]
[1610331200910,0.09438,36289.0,36267.0,0.07606]
[1610331201110,0.13632608,36275.0,36260.0,0.13632608]
[1610331201310,0.13632608,36275.0,36264.0,0.09911]
[1610331202311,0.13632608,36275.0,36260.0,0.13632608]
[1610331202511,0.07144,36275.0,36260.0,0.13632608]
[1610331203511,0.07144,36275.0,36235.0,0.09348]
[1610331203711,0.07144,36275.0,36194.0,1.7859]
[1610331205014,0.13632608,36266.0,36259.0,0.13632608]
[1610331205213,0.22392608,36266.0,36259.0,0.13632608]
[1610331206115,0.0876,36266.0,36259.0,0.13632608]
[1610331207017,0.13632608,36260.0,36249.0,0.13632608]
[1610331208720,0.0876,36266.0,36249.0,0.13632608]
[1610331209120,0.07144,36275.0,36265.0,0.13632608]
[1610331209320,4.5253,36283.0,36265.0,0.13632608]
[1610331210122,0.2831,36322.0,36265.0,0.13632608]
[1610331210322,0.2831,36322.0,36265.0,1.63632608]
[1610331210524,4.1004,36338.0,36265.0,1.63632608]
[1610331211125,0.13632608,36330.0,36299.0,0.13632608]
[1610331211324,4.1004,36338.0,36299.0,0.13632608]
[1610331213024,4.1004,36338.0,36299.0,1.63632608]
[1610331213827,2.94,36300.0,36299.0,1.63632608]
[1610331214027,1.77347,36300.0,36299.0,1.63632608]
[1610331214226,1.20355635,36300.0,36299.0,1.63632608]
[1610331214425,0.69139635,36300.0,36299.0,1.63632608]
[1610331214627,0.35099635,36300.0,36299.0,1.63632608]
[1610331214829,0.17019635,36300.0,36299.0,1.63632608]
[1610331215127,4.1004,36338.0,36299.0,0.13632608]
[1610331215327,4.1004,36338.0,36299.0,1.63632608]
[1610331215528,4.1004,36338.0,36300.0,0.0002]
[1610331216829,4.1004,36338.0,36299.0,0.13632608]
[1610331217230,4.1004,36338.0,36337.0,0.13632608]
[1610331217432,4.1004,36338.0,36337.0,0.24862608]
[1610331219534,0.10008,36362.0,36337.0,0.24862608]
[1610331221137,0.10008,36362.0,36361.0,0.13632608]
[1610331221938,0.2719,36448.0,36361.0,0.13632608]
[1610331222136,0.2794,36447.0,36361.0,0.13632608]
[1610331222336,0.37174,36447.0,36361.0,0.13632608]
[1610331223140,0.37174,36447.0,36354.0,0.09261]
[1610331223141,0.37174,36447.0,36411.0,0.13632608]
[1610331224641,0.09234,36447.0,36411.0,0.13632608]
[1610331225242,0.13632608,36415.0,36372.0,0.09345]
[1610331225441,0.20964608,36415.0,36372.0,0.09345]
[1610331226041,0.07332,36415.0,36372.0,0.09345]
[1610331227142,0.07332,36415.0,36414.0,0.13632608]
[1610331227942,0.07332,36415.0,36372.0,0.09345]
[1610331228143,0.07332,36415.0,36363.0,0.10346]
[1610331228344,0.07332,36415.0,36354.0,0.09261]
[1610331228543,0.07332,36415.0,36278.0,0.2971]
[1610331228943,0.07332,36415.0,36336.0,4.089]
[1610331229143,0.20964608,36415.0,36403.0,0.13632608]
[1610331229744,0.07332,36415.0,36403.0,0.13632608]
[1610331230445,4.1166,36436.0,36403.0,0.13632608]
[1610331231246,4.1166,36436.0,36435.0,0.13632608]
[1610331234256,4.1166,36436.0,36418.0,0.08198]
[1610331234456,4.22703,36436.0,36400.0,0.1114]
[1610331235056,4.22703,36436.0,36337.0,0.3003]
[1610331235257,0.13632608,36426.0,36421.0,0.13632608]
[1610331235460,0.08573,36426.0,36421.0,0.13632608]
[1610331236753,4.22703,36436.0,36421.0,0.13632608]
[1610331237154,4.22703,36436.0,36435.0,0.13632608]
[1610331238157,4.22703,36436.0,36403.0,0.11549]
[1610331238355,0.11043,36436.0,36403.0,0.11549]
[1610331238756,0.11043,36436.0,36381.0,3.104]
[1610331239155,0.24675608,36436.0,36429.0,0.13632608]
[1610331239355,0.24675608,36436.0,36384.0,0.10045]
[1610331240857,0.11043,36436.0,36384.0,0.10045]
[1610331241057,0.11604,36436.0,36384.0,0.10045]
[1610331241258,0.11604,36436.0,36435.0,0.13632608]
[1610331242060,0.11604,36436.0,36401.0,0.07671]
[1610331242460,0.11604,36436.0,36384.0,0.10045]
[1610331243062,0.08784,36436.0,36385.0,0.0002]
[1610331243261,0.01964,36436.0,36435.0,0.13632608]
[1610331243460,0.01424,36436.0,36435.0,0.13632608]
[1610331243660,0.08738,36447.0,36435.0,0.13632608]
[1610331243861,0.08228,36447.0,36435.0,0.13632608]
[1610331244060,0.2948,36455.0,36435.0,0.13632608]
[1610331244260,0.2825,36455.0,36435.0,0.13632608]
[1610331244462,0.2654,36455.0,36435.0,0.13632608]
[1610331244664,0.13632608,36459.0,36435.0,0.13632608]
[1610331245266,0.2751,36472.0,36413.0,0.08753]
[1610331245465,0.2333,36472.0,36413.0,0.08753]
[1610331245668,1.0,36517.0,36413.0,0.08753]
[1610331246367,3.8171,36473.0,36413.0,0.08753]
[1610331246567,0.84837347,36548.0,36413.0,0.08753]
[1610331246768,0.85043599,36546.0,36413.0,0.08753]
[1610331247169,0.13632608,36457.0,36446.0,0.13632608]
[1610331247368,0.21631608,36457.0,36446.0,0.13632608]
[1610331247971,0.17551608,36457.0,36446.0,0.13632608]
[1610331248174,0.05269,36457.0,36446.0,0.13632608]
[1610331248369,0.06548,36457.0,36446.0,0.13464741]
[1610331249169,0.06548,36457.0,36456.0,0.13632608]
[1610331249569,0.01488,36457.0,36456.0,0.13632608]
[1610331249969,8e-05,36457.0,36456.0,0.13632608]
[1610331251370,0.03389052,36545.0,36456.0,0.13632608]
[1610331251570,0.00033527,36507.0,36456.0,0.13632608]
[1610331251769,0.10359527,36507.0,36456.0,0.13632608]
[1610331251970,0.10326,36507.0,36456.0,0.13632608]
[1610331252371,0.06216,36507.0,36456.0,0.13632608]
[1610331252571,0.10622,36546.0,36460.0,3.9829]
[1610331252572,0.10288,36546.0,36460.0,3.9829]
[1610331252773,3.1426,36564.0,36460.0,4.09793]
[1610331252973,0.03385125,36545.0,36460.0,4.09793]
[1610331253172,0.13632608,36516.0,36461.0,0.2825]
[1610331253374,0.24304608,36516.0,36461.0,0.2825]
[1610331253773,0.24304608,36516.0,36460.0,4.09793]
[1610331253973,0.10672,36516.0,36460.0,4.09793]
[1610331254173,0.06612,36516.0,36460.0,4.09793]
[1610331254374,0.05072,36516.0,36460.0,4.09793]
[1610331254773,2e-05,36516.0,36460.0,4.09793]
[1610331255174,2e-05,36516.0,36506.0,0.13632608]
[1610331255574,2e-05,36516.0,36476.0,0.11144]
[1610331255774,0.03231,36516.0,36476.0,0.11144]
[1610331255977,0.24794513,36562.0,36476.0,0.11144]
[1610331256175,0.24761,36562.0,36476.0,0.11144]
[1610331256377,0.24441,36562.0,36476.0,0.11144]
[1610331256577,0.14951,36562.0,36476.0,0.11144]
[1610331256979,0.13581,36562.0,36476.0,0.11144]
[1610331257176,0.29,36563.0,36557.0,0.13632608]
[1610331257378,0.274,36563.0,36557.0,0.13632608]
[1610331257777,0.274,36563.0,36504.0,0.09176]
[1610331257979,0.37586,36563.0,36504.0,0.09176]
[1610331258175,0.10186,36563.0,36504.0,0.09176]
[1610331258578,0.07446,36563.0,36504.0,0.09176]
[1610331258777,6e-05,36563.0,36504.0,0.09176]
[1610331259176,0.13632608,36556.0,36549.0,0.13632608]
[1610331259377,0.13632608,36556.0,36505.0,0.2871]
[1610331259779,6e-05,36563.0,36505.0,0.2871]
[1610331259980,1.0,36624.0,36505.0,0.2871]
[1610331260380,1.0,36654.0,36505.0,0.2871]
[1610331260981,0.00033473,36653.0,36505.0,0.2871]
[1610331261183,0.13632608,36600.0,36595.0,0.13632608]
[1610331261381,0.23851608,36600.0,36595.0,0.13632608]
[1610331261583,0.10219,36600.0,36505.0,0.2871]
[1610331261782,0.01779,36600.0,36505.0,0.2871]
[1610331261982,0.10467,36653.0,36505.0,0.2871]
[1610331262182,0.10974,36600.0,36505.0,0.2871]
[1610331262583,0.06734,36600.0,36506.0,0.0002]
[1610331262782,0.10467,36653.0,36505.0,0.2871]
[1610331263182,0.05822608,36608.0,36506.0,0.0002]
[1610331263383,0.10096608,36608.0,36506.0,0.0002]
[1610331263582,0.08304,36608.0,36506.0,0.0002]
[1610331263784,0.02014,36608.0,36506.0,0.0002]
[1610331263983,0.03,36654.0,36506.0,0.0002]
[1610331264182,1.29249827,36700.0,36506.0,0.0002]
[1610331264383,1.29556781,36707.0,36506.0,0.0002]
[1610331264583,1.29548664,36710.0,36506.0,0.0002]
[1610331264782,1.29548664,36710.0,36505.0,0.2871]
[1610331264983,1.39309664,36710.0,36506.0,1.5]
[1610331265185,0.13632608,36650.0,36643.0,0.13632608]
[1610331265384,0.20404608,36650.0,36643.0,0.13632608]
[1610331265583,0.15184608,36650.0,36643.0,0.13632608]
[1610331265784,0.10273,36650.0,36643.0,0.13632608]
[1610331265983,0.07853,36650.0,36643.0,0.13632608]
[1610331266386,0.00733,36650.0,36643.0,0.13632608]
[1610331266584,0.09761,36710.0,36643.0,0.13632608]
[1610331266585,0.0918,36654.0,36643.0,0.13632608]
[1610331266784,7.5142,36667.0,36643.0,0.13632608]
[1610331266985,7.4091,36667.0,36643.0,0.13632608]
[1610331267184,7.4091,36667.0,36632.0,0.09455]
[1610331267185,6.9178,36667.0,36659.0,0.13632608]
[1610331267384,5.9057,36667.0,36659.0,0.13632608]
[1610331267585,5.6635,36667.0,36659.0,0.13632608]
[1610331267785,4.2094,36667.0,36659.0,0.13632608]
[1610331267984,3.7545,36667.0,36659.0,0.13632608]